fUST/lending_fUST_20240402
["ID","MTS","AMOUNT","RATE_DAILY","PERIOD"]
[321218766,1711987207990,872.48236211,0.00033521,2]
[321218767,1711987209032,632.62411811,0.00035197,2]
[321218768,1711987212653,154.84515485,0.000315,4]
[321218769,1711987213269,253.11620615,0.00035,2]
[321218770,1711987225398,2402.88065659,0.000381,5]
[321218771,1711987230727,248.81580736,0.000315,4]
[321218772,1711987235000,3568.29048888,0.00035,2]
[321218773,1711987240281,352.3799295,0.00037266,15]
[321218774,1711987254416,-154.84515485,0.00036283,4]
[321218775,1711987254438,-720.88311116,0.00036284,4]
[321218776,1711987254461,-154.84515485,0.00036284,4]
[321218777,1711987254488,-483.60427901,0.00036284,4]
[321218778,1711987254511,-2168.42007853,0.00036285,2]
[321218779,1711987254536,-1254.57959538,0.00036377,4]
[321218780,1711987254558,-2587.86848535,0.00036377,4]
[321218781,1711987254579,-154.84515485,0.00036378,4]
[321218782,1711987254599,-463.53746325,0.00036378,4]
[321218783,1711987254624,-400.0,0.00036378,2]
[321218784,1711987254645,-7461.69539405,0.00036378,4]
[321218785,1711987254665,-4940.4009557,0.00036379,4]
[321218786,1711987254685,-219.58654766,0.00036379,4]
[321218787,1711987254706,-4983.89848758,0.00036379,4]
[321218788,1711987254725,-154.84515485,0.00036379,4]
[321218789,1711987254746,-400.0,0.00036383,2]
[321218790,1711987254766,-1967.61186454,0.00036385,2]
[321218791,1711987254786,-171.479696,0.00036387,2]
[321218792,1711987254805,-216.76594596,0.0003652,4]
[321218793,1711987254826,-620.63120591,0.00036957,2]
[321218794,1711987254848,-480.40708669,0.00037265,4]
[321218795,1711987254878,-3395.35867629,0.00037265,4]
[321218796,1711987254898,-290.1758426,0.00037265,4]
[321218797,1711987254918,-2099.49695903,0.00037265,4]
[321218798,1711987254938,-154.92619913,0.00037265,4]
[321218799,1711987254958,-277.18630955,0.00037266,4]
[321218800,1711987254979,-11359.18257595,0.00037267,2]
[321218801,1711987254999,-3601.3478243,0.00037565,2]
[321218802,1711987255019,-147.57479698,0.0003777,2]
[321218803,1711987261452,155.20830486,0.00035,2]
[321218811,1711987306925,-5290.96743116,0.00036178,4]
[321218812,1711987306948,-1310.23209716,0.00036179,2]
[321218813,1711987306969,-364.34973665,0.00036282,4]
[321218814,1711987306989,-322.55333016,0.00036282,4]
[321218815,1711987307009,-689.89740487,0.00037051,2]
[321218817,1711987351333,8802.10550546,0.00035,4]
[321218818,1711987351363,11025.63252114,0.00035,4]
[321218819,1711987357792,206.46303179,0.00035,2]
[321218820,1711987425817,-1254.57959538,0.0003677,4]
[321218821,1711987425849,-463.53746325,0.00036771,4]
[321218822,1711987425880,-720.88311116,0.00036772,4]
[321218823,1711987425911,-364.34973665,0.00036773,4]
[321218824,1711987425942,-235.097995,0.00036774,2]
[321218825,1711987425972,-3458.28066899,0.00036952,4]
[321218826,1711987426002,-2587.86848535,0.00036953,4]
[321218827,1711987426032,-400.0,0.00036954,2]
[321218828,1711987426061,-515.40294422,0.00036956,2]
[321218829,1711987479988,177.511145,0.00036844,120]
[321218830,1711987484498,5346.849,0.00036001,2]
[321218831,1711987516444,162.44800869,0.00036854,8]
[321218832,1711987565321,2156.88154829,0.00035167,2]
[321218833,1711987585241,170.148233,0.00035757,2]
[321218834,1711987593722,24900.0,0.0003595,2]
[321218837,1711987663047,4670.99225789,0.00035,2]
[321218838,1711987684056,-1119.06117104,0.00036848,4]
[321218839,1711987684085,-3458.28066899,0.00036848,4]
[321218840,1711987684115,-400.0,0.00036848,2]
[321218841,1711987684145,-400.0,0.00036848,2]
[321218842,1711987684174,-4622.65815997,0.00036849,4]
[321218843,1711987698689,-252.81959649,0.00036847,2]
[321218844,1711987698722,-720.88311116,0.00036847,4]
[321218845,1711987698751,-2109.29026241,0.00036847,2]
[321218846,1711987698782,-3458.28066899,0.00036848,4]
[321218847,1711987698810,-3128.4598052,0.00036849,4]
[321218848,1711987698839,-330.26655575,0.00036849,4]
[321218849,1711987700615,-594.7079274,0.00036846,2]
[321218850,1711987700739,-2257.6019296,0.00036849,4]
[321218851,1711987700769,-5575.09965477,0.0003685,4]
[321218852,1711987700799,-1572.59048823,0.00036851,2]
[321218853,1711987702314,-592.26437018,0.00036851,2]
[321218854,1711987702342,-258.65401685,0.00036942,4]
[321218855,1711987702371,-361.0,0.0003695,2]
[321218856,1711987702399,-5007.45800833,0.00036951,4]
[321218857,1711987702429,-1050.5825103,0.00036951,4]
[321218858,1711987702458,-1442.42215343,0.00036952,2]
[321218859,1711987702490,-140.25661898,0.00036956,2]
[321218871,1711987759731,-2327.9493486,0.00037027,2]
[321218872,1711987759753,-155.30490084,0.0003705,4]
[321218873,1711987759777,-2310.10259513,0.00037051,2]
[321218874,1711987759799,-201.51180931,0.00037256,2]
[321218875,1711987759820,-248.41569543,0.00037265,4]
[321218876,1711987759843,-245.15484515,0.00037265,4]
[321218877,1711987759865,-925.87076632,0.00037266,4]
[321218878,1711987759889,-155.2374134,0.00037266,4]
[321218879,1711987759912,-1319.94243816,0.00037769,4]
[321218880,1711987759935,-273.55514728,0.00038176,2]
[321218881,1711987759958,-400.0,0.00038178,2]
[321218882,1711987759981,-400.0,0.00038179,2]
[321218883,1711987760005,-2164.85485841,0.00038181,2]
[321218884,1711987760030,-2099.58,0.00038272,4]
[321218885,1711987760054,-385.27448771,0.00038274,4]
[321218886,1711987760077,-589.49522065,0.00038274,4]
[321218887,1711987760102,-307.20080874,0.00038274,4]
[321218888,1711987760124,-2096.186625,0.00038274,4]
[321218889,1711987760148,-2143.77010819,0.00038274,4]
[321218890,1711987760172,-174.53300587,0.00038274,4]
[321218891,1711987760195,-463.53746325,0.00038274,4]
[321218892,1711987760220,-252.81959649,0.00038274,2]
[321218893,1711987760244,-794.83014187,0.00038274,4]
[321218894,1711987760271,-820.69878193,0.00038275,4]
[321218895,1711987760295,-264.26939875,0.00038276,7]
[321218896,1711987760318,-292.20478428,0.00038276,4]
[321218897,1711987760341,-156.25875454,0.00038276,4]
[321218898,1711987760363,-531.4410047,0.00038276,4]
[321218899,1711987763975,-922.57515994,0.00038276,4]
[321218900,1711987764000,-333.07739464,0.00038276,4]
[321218901,1711987764028,-156.54081407,0.00038276,4]
[321218902,1711987764053,-154.84515485,0.00038276,4]
[321218903,1711987764077,-3906.14505715,0.00038276,4]
[321218904,1711987764101,-208.36156142,0.00038276,4]
[321218905,1711987764125,-251.60742603,0.00038276,4]
[321218906,1711987764147,-343.03276652,0.00038276,4]
[321218907,1711987764170,-257.89527108,0.00038276,4]
[321218908,1711987764194,-1505.06398234,0.00038276,2]
[321218909,1711987764217,-594.7079274,0.00038276,2]
[321218910,1711987764240,-280.8972487,0.00038276,4]
[321218911,1711987764266,-7751.11796517,0.00038276,4]
[321218912,1711987764288,-1076.94605605,0.00038276,4]
[321218913,1711987764311,-262.72709575,0.00038277,4]
[321218914,1711987764335,-313.96059732,0.00038277,4]
[321218915,1711987764360,-4180.49852157,0.00038277,4]
[321218916,1711987768026,-3458.28066899,0.0003705,4]
[321218917,1711987768050,-944.65877113,0.00038277,4]
[321218918,1711987768075,-155.62187126,0.00038278,4]
[321218919,1711987768098,-155.0310062,0.00038278,4]
[321218921,1711987768120,-1162.19072962,0.00038278,4]
[321218922,1711987768141,-155.0310062,0.00038278,4]
[321218923,1711987768164,-254.18026618,0.00038278,4]
[321218924,1711987768188,-330.0727662,0.00038278,4]
[321218925,1711987768210,-720.93630147,0.00038278,4]
[321218926,1711987768233,-1949.22736861,0.00038278,4]
[321218927,1711987768256,-5327.55015659,0.00038278,4]
[321218928,1711987768389,-2237.2930494,0.00038279,4]
[321218929,1711987768413,-500.0,0.00038356,2]
[321218930,1711987768436,-500.0,0.0003841,2]
[321218931,1711987768460,-500.0,0.00038465,2]
[321218932,1711987768486,-500.0,0.0003852,2]
[321218933,1711987780260,-337.79365609,0.00038574,2]
[321218934,1711987780286,-500.0,0.00038575,2]
[321218935,1711987780311,-352.4026251,0.00038628,2]
[321218936,1711987780337,-4064.00647022,0.00038628,4]
[321218937,1711987780360,-13441.8853,0.00038629,30]
[321218938,1711987780385,-500.0,0.0003863,2]
[321218939,1711987780409,-613.1079328,0.00038684,2]
[321218940,1711987780435,-620.0315603,0.00038805,2]
[321218941,1711987780460,-877.02450501,0.00039205,2]
[321218942,1711987780484,-1193.74795048,0.0003951,2]
[321218943,1711987785708,-3458.28066899,0.00038628,4]
[321218944,1711987785732,-971.10690793,0.0003951,2]
[321218945,1711987785756,-172.58203,0.0004,2]
[321218946,1711987785781,-200.0,0.0004,10]
[321218947,1711987785805,-1169.57769885,0.0004,2]
[321218948,1711987785827,-166.614759,0.0004,2]
[321218949,1711987785851,-601.44972216,0.0004,5]
[321218950,1711987785876,-166.766966,0.0004,2]
[321219158,1711987837894,-2156.88154829,0.00040167,2]
[321219160,1711987837903,-169.8020304,0.00040183,2]
[321219162,1711987837912,-630.58466204,0.00040531,2]
[321219164,1711987837922,-6995.43265504,0.00040773,2]
[321219167,1711987837954,-2790.06,0.00040773,2]
[321219275,1711987838562,-3499.45466298,0.00040773,2]
[321219284,1711987838642,-12791.28482378,0.00040773,2]
[321219286,1711987838651,-2164.85485841,0.0004084,2]
[321219288,1711987838660,-1035.68,0.00041,2]
[321219290,1711987838670,-278.82819441,0.00041095,120]
[321219292,1711987838679,-166.666666,0.00041096,2]
[321219294,1711987838689,-166.666666,0.00042058,2]
[321219296,1711987838698,-2164.85485841,0.00042169,2]
[321219298,1711987838707,-182.37009818,0.0004217,2]
[321219300,1711987838716,-550.0,0.00042268,3]
[321219302,1711987838725,-550.0,0.00042268,5]
[321219304,1711987838735,-3952.32076456,0.00042268,4]
[321219306,1711987838744,-48749.0,0.0004227,30]
[321219308,1711987838754,-41447.78583997,0.0004227,2]
[321219310,1711987838763,-19296.02002746,0.0004227,2]
[321219312,1711987838772,-2879.66720286,0.0004227,2]
[321219315,1711987838786,-1217.52125036,0.0004227,2]
[321219327,1711987838890,-9354.81154578,0.0004227,2]
[321219329,1711987838899,-166.666666,0.00043019,2]
[321219331,1711987838908,-166.666666,0.00043981,2]
[321219333,1711987838918,-166.666666,0.00044942,2]
[321219335,1711987838927,-770.0,0.0004498,3]
[321219337,1711987838936,-770.0,0.0004498,5]
[321219339,1711987838945,-200.0,0.00045,120]
[321219341,1711987838954,-2062.48340947,0.00045,120]
[321219343,1711987838963,-190.25570993,0.000455,4]
[321219345,1711987838972,-166.666666,0.00045904,2]
[321219347,1711987838981,-1500.0,0.00046,2]
[321219349,1711987838990,-177.511145,0.00046055,120]
[321219351,1711987839000,-150.8642222,0.00047669,2]
[321219353,1711987839009,-1077.0,0.00047865,3]
[321219355,1711987839018,-1077.0,0.00047865,5]
[321219357,1711987839028,-182.37009817,0.00048432,2]
[321219359,1711987839037,-151.0,0.00048449,7]
[321219361,1711987839046,-301.7284444,0.0004847,4]
[321219363,1711987839056,-200.0,0.00048474,120]
[321219365,1711987839065,-166.766966,0.00048817,2]
[321219367,1711987839075,-603.4568888,0.00049285,7]
[321219369,1711987839084,-153.0,0.00049998,2]
[321219371,1711987839093,-153.0,0.00049998,2]
[321219373,1711987839103,-153.0,0.00049998,2]
[321219375,1711987839112,-153.0,0.00049998,2]
[321219377,1711987839121,-153.0,0.00049998,30]
[321219379,1711987839131,-153.0,0.00049998,2]
[321219381,1711987839139,-153.0,0.00049998,2]
[321219383,1711987839148,-153.0,0.00049998,2]
[321219385,1711987839157,-153.0,0.00049998,2]
[321219386,1711987839167,-153.0,0.00049998,2]
[321219389,1711987839177,-153.0,0.00049998,2]
[321219391,1711987839186,-153.0,0.00049998,30]
[321219393,1711987839194,-153.0,0.00049998,2]
[321219395,1711987839203,-153.0,0.00049998,2]
[321219396,1711987839212,-153.0,0.00049998,2]
[321219398,1711987839221,-153.0,0.00049998,30]
[321219400,1711987839231,-153.0,0.00049998,2]
[321219402,1711987839239,-153.0,0.00049998,2]
[321219404,1711987839249,-153.0,0.00049998,2]
[321219406,1711987839258,-153.0,0.00049998,2]
[321219408,1711987839266,-153.0,0.00049998,2]
[321219411,1711987839277,-200.0,0.0005,120]
[321219413,1711987839286,-550.75015793,0.0005,120]
[321219415,1711987839296,-1206.9137776,0.00050532,30]
[321219417,1711987839305,-151.0,0.00050819,7]
[321219419,1711987839314,-153.0,0.0005082,2]
[321219421,1711987839324,-153.0,0.0005082,2]
[321219423,1711987839333,-153.0,0.0005082,2]
[321219425,1711987839342,-153.0,0.0005082,2]
[321219427,1711987839351,-153.0,0.0005082,2]
[321219429,1711987839360,-153.0,0.0005082,2]
[321219431,1711987839369,-153.0,0.0005082,2]
[321219433,1711987839378,-153.0,0.0005082,2]
[321219435,1711987839388,-153.0,0.0005082,2]
[321219437,1711987839397,-153.0,0.0005082,2]
[321219439,1711987839406,-153.0,0.0005082,2]
[321219441,1711987839415,-153.0,0.0005082,2]
[321219443,1711987839424,-153.0,0.0005082,2]
[321219445,1711987839433,-153.0,0.0005082,2]
[321219447,1711987839442,-153.0,0.0005082,2]
[321219449,1711987839452,-153.0,0.0005082,2]
[321219451,1711987839461,-153.0,0.0005082,2]
[321219453,1711987839472,-153.0,0.0005082,2]
[321219456,1711987839481,-153.0,0.0005082,2]
[321219458,1711987839491,-153.0,0.0005082,2]
[321219460,1711987839500,-1509.0,0.00050935,10]
[321219462,1711987839509,-1509.0,0.00050935,15]
[321219464,1711987839518,-1500.0,0.00051,2]
[321219466,1711987839527,-207.924,0.000511,120]
[321219468,1711987839536,-150.081,0.000511,120]
[321219470,1711987839545,-1800.0,0.00054,120]
[321219472,1711987839555,-2112.0,0.00054203,10]
[321219474,1711987839564,-2112.0,0.00054203,15]
[321219476,1711987839574,-2336.1403667,0.00054603,120]
[321219478,1711987839584,-182.37009817,0.00054694,2]
[321219481,1711987839594,-465.55,0.000547,95]
[321219485,1711987839605,-239751.8410941,0.0005479,2]
[321219488,1711987839615,-566.83024831,0.00054792,4]
[321219508,1711987839709,-3498.72469042,0.00054792,120]
[321219512,1711987839720,-247.90583029,0.00054793,4]
[321219514,1711987839729,-1068.00467278,0.00054793,4]
[321219517,1711987839738,-194.67654037,0.00054793,4]
[321219519,1711987839748,-500.0,0.00054793,2]
[321219522,1711987839757,-11563.36605503,0.00054794,61]
[321219525,1711987839766,-397.02972107,0.00054794,120]
[321219528,1711987839775,-501.54090339,0.00054794,120]
[321219531,1711987839785,-502.03189191,0.00054794,14]
[321219534,1711987839794,-500.0,0.00054794,120]
[321219537,1711987839803,-500.0,0.00054794,120]
[321219540,1711987839812,-500.0,0.00054794,120]
[321219543,1711987839822,-501.20231121,0.00054794,120]
[321219546,1711987839831,-500.0,0.00054794,120]
[321219549,1711987839840,-593.35285033,0.00054794,120]
[321219552,1711987839849,-500.0,0.00054794,120]
[321219555,1711987839859,-500.0,0.00054794,120]
[321219558,1711987839868,-500.0,0.00054794,120]
[321219561,1711987839877,-500.0,0.00054794,120]
[321219564,1711987839886,-500.0,0.00054794,120]
[321219566,1711987839895,-503.79417984,0.00054794,120]
[321219569,1711987839904,-286.20474476,0.00054794,120]
[321219572,1711987839912,-645.55608467,0.00054794,120]
[321219575,1711987839921,-500.0,0.00054794,120]
[321219578,1711987839931,-501.73340776,0.00054794,120]
[321219580,1711987839940,-507.86030622,0.00054794,120]
[321219582,1711987839949,-500.0,0.00054794,120]
[321219584,1711987839957,-500.0,0.00054794,120]
[321219586,1711987839967,-500.0,0.00054794,120]
[321219588,1711987839976,-500.0,0.00054794,120]
[321219590,1711987839985,-505.99857395,0.00054794,120]
[321219592,1711987839995,-568.26,0.00054794,2]
[321219594,1711987840004,-500.0,0.00054794,120]
[321219596,1711987840013,-500.0,0.00054794,120]
[321219598,1711987840022,-500.0,0.00054794,120]
[321219600,1711987840031,-500.0,0.00054794,120]
[321219602,1711987840040,-500.0,0.00054794,120]
[321219604,1711987840049,-508.51511681,0.00054794,120]
[321219606,1711987840058,-500.0,0.00054794,120]
[321219608,1711987840068,-500.0,0.00054794,120]
[321219610,1711987840079,-500.0,0.00054794,120]
[321219612,1711987840088,-522.27066438,0.00054794,120]
[321219614,1711987840097,-500.0,0.00054794,120]
[321219616,1711987840106,-500.0,0.00054794,120]
[321219618,1711987840115,-500.0,0.00054794,120]
[321219620,1711987840124,-500.0,0.00054794,120]
[321219622,1711987840134,-500.0,0.00054794,120]
[321219624,1711987840143,-500.0,0.00054794,120]
[321219626,1711987840152,-500.0,0.00054794,120]
[321219628,1711987840161,-500.0,0.00054794,120]
[321219630,1711987840171,-500.0,0.00054794,120]
[321219632,1711987840180,-500.0,0.00054794,120]
[321219634,1711987840190,-500.0,0.00054794,32]
[321219636,1711987840199,-500.0,0.00054794,120]
[321219638,1711987840209,-500.8556129,0.00054794,120]
[321219640,1711987840218,-500.0,0.00054794,120]
[321219642,1711987840227,-500.8987118,0.00054794,120]
[321219644,1711987840237,-500.0,0.00054794,120]
[321219646,1711987840246,-500.0,0.00054794,120]
[321219648,1711987840255,-500.0,0.00054794,120]
[321219650,1711987840265,-500.0,0.00054794,120]
[321219652,1711987840274,-500.0,0.00054794,120]
[321219654,1711987840283,-502.24432671,0.00054794,120]
[321219656,1711987840292,-500.0,0.00054794,120]
[321219658,1711987840302,-446.1896089,0.00054794,7]
[321219660,1711987840311,-500.0,0.00054794,120]
[321219662,1711987840320,-500.0,0.00054794,120]
[321219664,1711987840331,-500.0,0.00054794,120]
[321219666,1711987840341,-500.0,0.00054794,120]
[321219668,1711987840350,-504.76782608,0.00054794,7]
[321219670,1711987840360,-500.0,0.00054794,120]
[321219672,1711987840369,-355.8608576,0.00054794,120]
[321219674,1711987840378,-500.0,0.00054794,120]
[321219676,1711987840387,-500.0,0.00054794,120]
[321219678,1711987840397,-500.0,0.00054794,120]
[321219680,1711987840406,-500.0,0.00054794,120]
[321219682,1711987840415,-500.0,0.00054794,120]
[321219684,1711987840424,-500.0,0.00054794,120]
[321219686,1711987840433,-502.41491343,0.00054794,120]
[321219688,1711987840442,-504.32456191,0.00054794,120]
[321219690,1711987840451,-500.0,0.00054794,120]
[321219692,1711987840460,-500.0,0.00054794,120]
[321219694,1711987840469,-500.0,0.00054794,120]
[321219696,1711987840478,-151.0,0.00054794,7]
[321219698,1711987840487,-500.0,0.00054794,120]
[321219700,1711987840496,-500.0,0.00054794,120]
[321219702,1711987840505,-500.0,0.00054794,120]
[321219704,1711987840514,-500.0,0.00054794,120]
[321219706,1711987840523,-500.0,0.00054794,120]
[321219708,1711987840532,-500.0,0.00054794,120]
[321219710,1711987840541,-501.33226922,0.00054794,120]
[321219712,1711987840550,-287.87918668,0.00054794,120]
[321219714,1711987840559,-501.19724248,0.00054794,120]
[321219716,1711987840568,-500.0,0.00054794,120]
[321219718,1711987840579,-176.47267758,0.00054794,120]
[321219720,1711987840588,-500.0,0.00054794,120]
[321219722,1711987840597,-500.0,0.00054794,120]
[321219723,1711987840607,-500.0,0.00054794,120]
[321219726,1711987840618,-500.0,0.00054794,120]
[321219728,1711987840634,-500.0,0.00054794,120]
[321219729,1711987840643,-500.0,0.00054794,120]
[321219732,1711987840653,-500.0,0.00054794,120]
[321219734,1711987840662,-500.0,0.00054794,120]
[321219736,1711987840671,-574.83,0.00054794,120]
[321219738,1711987840680,-500.0,0.00054794,120]
[321219739,1711987840690,-500.0,0.00054794,120]
[321219741,1711987840700,-500.0,0.00054794,120]
[321219743,1711987840709,-500.0,0.00054794,120]
[321219745,1711987840718,-561.69472705,0.00054794,120]
[321219747,1711987840727,-508.48179987,0.00054794,120]
[321219750,1711987840737,-502.84811282,0.00054794,120]
[321219751,1711987840747,-297.4089636,0.00054794,120]
[321219753,1711987840757,-502.66295237,0.00054794,120]
[321219755,1711987840767,-500.0,0.00054794,120]
[321219757,1711987840778,-500.0,0.00054794,120]
[321219759,1711987840788,-500.0,0.00054794,120]
[321219761,1711987840797,-500.0,0.00054794,120]
[321219763,1711987840807,-500.0,0.00054794,120]
[321219765,1711987840816,-584.63105718,0.00054794,120]
[321219768,1711987840827,-557.00339501,0.00054794,120]
[321219769,1711987840836,-500.0,0.00054794,120]
[321219772,1711987840846,-500.0,0.00054794,120]
[321219774,1711987840855,-500.0,0.00054794,120]
[321219776,1711987840865,-627.38135464,0.00054794,120]
[321219778,1711987840874,-151.0,0.00054794,120]
[321219779,1711987840884,-500.0,0.00054794,20]
[321219782,1711987840894,-500.0,0.00054794,120]
[321219783,1711987840904,-500.0,0.00054794,120]
[321219786,1711987840914,-500.0,0.00054794,120]
[321219787,1711987840923,-500.0,0.00054794,120]
[321219789,1711987840933,-502.10200341,0.00054794,120]
[321219791,1711987840942,-501.1230738,0.00054794,120]
[321219793,1711987840951,-500.0,0.00054794,120]
[321219794,1711987840962,-529.05,0.00054794,120]
[321219795,1711987840972,-500.0,0.00054794,120]
[321219796,1711987840982,-500.0,0.00054794,120]
[321219797,1711987840991,-500.0,0.00054794,120]
[321219798,1711987841001,-506.61979046,0.00054794,120]
[321219799,1711987841010,-500.0,0.00054794,120]
[321219800,1711987841019,-500.0,0.00054794,120]
[321219801,1711987841029,-500.0,0.00054794,120]
[321219802,1711987841038,-500.0,0.00054794,120]
[321219803,1711987841047,-500.0,0.00054794,120]
[321219804,1711987841056,-500.0,0.00054794,120]
[321219805,1711987841066,-813.17,0.00054794,120]
[321219806,1711987841075,-500.0,0.00054794,120]
[321219807,1711987841084,-505.21900292,0.00054794,120]
[321219809,1711987841093,-500.0,0.00054794,120]
[321219811,1711987841103,-502.56350408,0.00054794,120]
[321219813,1711987841112,-574.27,0.00054794,120]
[321219814,1711987841121,-520.60320808,0.00054794,120]
[321219817,1711987841131,-1226.21,0.00054794,120]
[321219818,1711987841141,-502.24172775,0.00054794,120]
[321219820,1711987841150,-500.0,0.00054794,120]
[321219822,1711987841159,-775.4,0.00054794,120]
[321219824,1711987841168,-500.0,0.00054794,120]
[321219826,1711987841177,-500.0,0.00054794,120]
[321219829,1711987841187,-500.0,0.00054794,120]
[321219831,1711987841196,-151.0,0.00054794,7]
[321219832,1711987841206,-151.0,0.00054794,7]
[321219835,1711987841215,-500.0,0.00054794,120]
[321219837,1711987841224,-151.0,0.00054794,7]
[321219839,1711987841233,-151.0,0.00054794,7]
[321219841,1711987841243,-3382.0,0.00054794,120]
[321219843,1711987841252,-500.0,0.00054794,120]
[321219844,1711987841261,-500.0,0.00054794,120]
[321219847,1711987841271,-868.76,0.00054794,120]
[321219848,1711987841280,-500.0,0.00054794,120]
[321219850,1711987841289,-500.0,0.00054794,120]
[321219852,1711987841299,-500.0,0.00054794,120]
[321219854,1711987841308,-500.0,0.00054794,120]
[321219856,1711987841317,-500.0,0.00054794,120]
[321219859,1711987841328,-500.0,0.00054794,120]
[321219860,1711987841337,-500.0,0.00054794,120]
[321219862,1711987841346,-537.95,0.00054794,120]
[321219864,1711987841355,-500.0,0.00054794,120]
[321219867,1711987841364,-500.0,0.00054794,120]
[321219868,1711987841373,-500.0,0.00054794,120]
[321219871,1711987841382,-500.0,0.00054794,120]
[321219873,1711987841391,-693.76,0.00054794,120]
[321219874,1711987841400,-500.0,0.00054794,120]
[321219877,1711987841410,-500.0,0.00054794,120]
[321219879,1711987841420,-500.0,0.00054794,120]
[321219881,1711987841429,-500.0,0.00054794,120]
[321219883,1711987841438,-500.0,0.00054794,120]
[321219885,1711987841447,-642.5969167,0.00054794,120]
[321219887,1711987841456,-500.0,0.00054794,120]
[321219889,1711987841465,-500.0,0.00054794,120]
[321219891,1711987841475,-500.0,0.00054794,120]
[321219893,1711987841484,-7031.3,0.00054794,120]
[321219895,1711987841493,-500.0,0.00054794,120]
[321219897,1711987841503,-547.22020372,0.00054794,120]
[321219899,1711987841512,-9085.71,0.00054794,90]
[321219901,1711987841521,-502.09384454,0.00054794,120]
[321219903,1711987841530,-500.0,0.00054794,120]
[321219912,1711987841607,-500.0,0.00054794,120]
[321219914,1711987841617,-360.55607003,0.00054794,120]
[321219916,1711987841632,-151.0,0.00054794,7]
[321219918,1711987841642,-151.0,0.00054794,7]
[321219920,1711987841651,-500.0,0.00054794,120]
[321219922,1711987841661,-151.0,0.00054794,7]
[321219924,1711987841671,-500.0,0.00054794,120]
[321219926,1711987841680,-151.0,0.00054794,7]
[321219928,1711987841689,-343.29081047,0.00054794,120]
[321219930,1711987841698,-1983.07,0.00054794,21]
[321219932,1711987841708,-505.56797893,0.00054794,7]
[321219934,1711987841719,-500.0,0.00054794,120]
[321219936,1711987841728,-500.0,0.00054794,120]
[321219938,1711987841737,-500.0,0.00054794,60]
[321219940,1711987841747,-500.0,0.00054794,120]
[321219942,1711987841756,-500.0,0.00054794,120]
[321219944,1711987841766,-500.0,0.00054794,120]
[321219946,1711987841775,-3000.0,0.00054794,120]
[321219948,1711987841784,-501.92233307,0.00054794,120]
[321219949,1711987841794,-500.0,0.00054794,120]
[321219951,1711987841803,-500.0,0.00054794,120]
[321219953,1711987841812,-500.0,0.00054794,120]
[321219954,1711987841821,-500.0,0.00054794,120]
[321219956,1711987841831,-572.87,0.00054794,120]
[321219958,1711987841841,-500.8111204,0.00054794,120]
[321219960,1711987841850,-1808.02,0.00054794,120]
[321219962,1711987841859,-500.0,0.00054794,120]
[321219964,1711987841868,-504.98810383,0.00054794,120]
[321219966,1711987841877,-500.0,0.00054794,120]
[321219968,1711987841887,-500.0,0.00054794,120]
[321219970,1711987841896,-500.0,0.00054794,120]
[321219972,1711987841906,-500.0,0.00054794,120]
[321219974,1711987841915,-500.0,0.00054794,120]
[321219976,1711987841924,-764.82,0.00054794,120]
[321219978,1711987841933,-500.0,0.00054794,120]
[321219980,1711987841943,-500.0,0.00054794,120]
[321219982,1711987841952,-2291.96,0.00054794,120]
[321219984,1711987841962,-500.0,0.00054794,120]
[321219986,1711987841971,-500.0,0.00054794,120]
[321219988,1711987841980,-500.0,0.00054794,120]
[321219990,1711987841990,-3155.73,0.00054794,120]